Cogmind - Beta 14 --- EXPLORER MODE // 2024.11.19 @ 03:19:26 Player: Nah Bohdi Result: Self-destructed Performance ------------- Evolutions (2) 1000 Regions Visited (5) 1000 Robots Destroyed (64) 320 Value Destroyed (1931) 1931 Prototype IDs (8) 160 Alien Tech Used (0) 0 Bonus (7) 7 TOTAL SCORE: 4418 Bonus ------- Follower Combat Kills 63 Friendly Fire -56 Cogmind --------- Core Integrity 238/550 Matter 300/300 Energy 142/320 System Corruption 11% Temperature Cool (0) Movement Treading (246) Ox1 Location -8/Materials Parts ------- > --- POWER (2) -------- Cooled Ion Engine Light Deuterium Engine > --- PROPULSION (3) --- Light Treads Armored Treads Armored Treads > --- UTILITY (5) ------ Huge Storage Unit Advanced Visual Processing Unit Weapon Cycler Hacking Suite Tractor Beam > --- WEAPON (2) ------- Rocket Launcher Missile Launcher > --- INVENTORY (25) --- Improved Deuterium Engine Light Treads Improved Heat Sink Cooling System Coolant Injector High-capacity Matter Pod (200) High-capacity Matter Pod (200) Faulty Experimental Sensor Array Advanced Targeting Computer Kinecellerator Hardened Light Armor Plating Improved Light Armor Plating Improved Trap Extractor (0/6) Recalibrator Advanced Assault Cannon Proton Missile Launcher Grenade Launcher Remote Datajack Mining Laser Proton Bomb Trap Proton Bomb Trap Proton Bomb Trap Proton Bomb Trap Peak State ------------ > --- POWER ------------ Improved Deuterium Engine Improved Deuterium Engine > --- PROPULSION ------- Armored Treads Armored Treads Advanced Treads > --- UTILITY ---------- Huge Storage Unit Machine Analyzer Experimental Sensor Array Kinecellerator Hacking Suite > --- WEAPON ----------- Advanced Assault Cannon Gauss Cannon > --- INVENTORY -------- Light Angular Momentum Engine Light Treads Improved Heat Sink Cooling System High-capacity Matter Pod High-capacity Matter Pod High-capacity Matter Pod Advanced Visual Processing Unit Weapon Cycler Hardened Light Armor Plating Improved Light Armor Plating Tractor Beam Improved Trap Extractor Recalibrator Proton Missile Launcher Grenade Launcher Grenade Launcher Rocket Launcher Remote Datajack Mining Laser Proton Bomb Trap Proton Bomb Trap Proton Bomb Trap Proton Bomb Trap [Rating: 50] Favorites ----------- Power Ion Engine Engine Ion Engine Power Core Light Nuclear Core Propulsion Light Treads Treads Light Treads Leg Improved Aluminum Leg Utility Targeting Computer Device Tractor Beam Storage Huge Storage Unit Processor Targeting Computer Hackware Hacking Suite Protection Propulsion Shielding Weapon Advanced Assault Cannon Energy Gun EM Pulse Gun Ballistic Gun Light Assault Rifle Ballistic Cannon Advanced Assault Cannon Launcher Grenade Launcher Special Weapon Remote Datajack Special Melee Weapon Datajack Build | -11 -10 -10 -10 -9 -8 ------- Run | Yrd Mat Min Exi Min Mat Slots Evolved 5 | . 1 . . . 4 Power 1 | . . . . . 1 Propulsion 1 | . . . . . 1 Utility 3 | . 1 . . . 2 Weapon . | . . . . . . Parts Attached 90 | 7 22 7 6 7 41 Power 11 | 1 1 . 2 . 7 Engine 10 | 1 1 . 2 . 6 Core 1 | . . . . . 1 Reactor . | . . . . . . Propulsion 16 | 2 6 . . . 8 Treads 15 | 2 6 . . . 7 Leg 1 | . . . . . 1 Wheel . | . . . . . . Hover . | . . . . . . Flight . | . . . . . . Utility 33 | 2 8 3 2 3 15 Device 18 | . 3 3 . 2 10 Storage 9 | 1 4 . 2 1 1 Processor 4 | 1 . . . . 3 Hackware 1 | . . . . . 1 Protection 1 | . 1 . . . . Artifact . | . . . . . . Weapon 30 | 2 7 4 2 4 11 Energy Gun 9 | 2 4 2 . . 1 Energy Cannon . | . . . . . . Ballistic Gun 3 | . 1 2 . . . Ballistic Cannon 8 | . . . . 2 6 Launcher 4 | . . . . . 4 Special Weapon 4 | . 1 . 1 2 . Impact Weapon . | . . . . . . Slashing Weapon . | . . . . . . Piercing Weapon . | . . . . . . Special Melee Weapon 2 | . 1 . 1 . . Unidentified Prototypes 3 | . . 1 . . 2 Parts Lost 5 | . 1 . . . 4 Power 3 | . 1 . . . 2 Propulsion 1 | . . . . . 1 Utility . | . . . . . . Weapon 1 | . . . . . 1 Highest Loss Streak 3 | . 1 . . . 3 To Critical Strikes . | . . . . . . Average Slot Usage (%) 98 | . 96 100 99 100 96 Engine 12 | . 11 12 11 12 12 Treads 24 | . 24 25 25 25 22 Device 11 | . 3 10 11 11 17 Storage 12 | . 17 13 13 12 8 Processor 10 | . 12 12 12 12 8 Hackware 1 | . . . . . 5 Energy Gun 2 | . 8 8 . . . Ballistic Gun 3 | . 8 3 12 . . Ballistic Cannon 7 | . . . . 11 14 Special Weapon 4 | . 4 . 1 11 . Special Melee Weapon 3 | . 2 12 10 . . Peak Build Rating 50 | 7 9 18 10 21 50 Average Rating 19 | 5 8 9 9 17 37 On Entrance 9 | . 7 9 10 9 21 Naked Turns . | . . . . . . Heaviest Build 118 | 17 87 20 21 95 118 Greatest Support 62 | 40 40 40 40 40 62 Greatest Overweight (x) 37 | 1 4 . . 31 37 Average Overweight (x) . | . . . . 3 1 Largest Inventory Capacity 25 | 10 25 10 10 25 25 Average Capacity 18 | 8 10 10 10 22 25 Most Carried 25 | 5 10 10 10 24 25 Average Carried 16 | 3 8 9 9 19 22 Final Capacity 25 | 10 10 10 10 25 25 Final Carried 23 | 5 10 10 9 23 23 Class Distribution -------------------- 100% | Hacker-Mutant Dominant Class ---------------- Hacker-Mutant | -10/Materials Hacker-Mutant | -10/Mines Hacker-Mutant | -10/Exiles Hacker-Mutant | -9/Mines Hacker-Mutant | -8/Materials Resources | -11 -10 -10 -10 -9 -8 ----------- Run | Yrd Mat Min Exi Min Mat Matter Collected 2360 | 270 539 79 54 190 1228 Remotely 1020 | . 38 71 . 60 851 Salvage Created 2263 | 153 679 171 . 150 1110 Parts 106 | 8 24 10 . 1 63 Haulers Intercepted 2 | . 1 . . . 1 Recyclers Shooed 4 | . 2 1 . . 1 Parts Field Recycled . | . . . . . . Retrieved Matter . | . . . . . . Parts Self-Destructed . | . . . . . . Prevented . | . . . . . . Kills | -11 -10 -10 -10 -9 -8 ------- Run | Yrd Mat Min Exi Min Mat Combat Hostiles Destroyed 36 | . 7 . . 2 27 Guns 6 | . 6 . . . . Cannons 25 | . 1 . . 2 22 AOE 5 | . . . . . 5 Classes Destroyed 12 | 2 4 1 . . 5 Worker 3 | . . . . . 3 Builder 1 | . . 1 . . . Tunneler 5 | 3 1 . . . 1 Hauler 2 | . 1 . . . 1 Recycler 9 | 1 4 2 . . 2 Operator 1 | . . . . . 1 Watcher 7 | . 3 . . . 4 Swarmer 2 | . 2 . . . . Grunt 25 | . 5 . . 2 18 Duelist 1 | . . . . . 1 Sentry 6 | . . . . . 6 Hunter 2 | . . . . . 2 Best Kill Streak 4 | 2 4 1 . 2 4 Combat Bots Only 3 | . 2 . . 2 3 Max Kills in Single Turn 3 | 1 1 1 . 1 3 Gunslinging . | . . . . . . Exploded 2 | . . . . . 2 Melee . | . . . . . . Uniques/NPCs Destroyed . | . . . . . . Combat | -11 -10 -10 -10 -9 -8 -------- Run | Yrd Mat Min Exi Min Mat Hostile Shots Fired 151 | . 42 5 . 10 94 Missed 38 | . 10 1 . 2 25 Damage Taken 1737 | . 310 15 . 63 1349 Core 337 | . 22 3 . . 312 Absorbed by Shields . | . . . . . . Ignored by Resistances 748 | . 190 12 . 41 505 Regen/Repaired (Parts) 456 | . . . . . 456 Core Remaining (%) 95 | 100 . . . 90 . Volleys Fired 190 | 8 63 18 4 21 76 Largest 2 | 2 2 1 2 2 2 Hottest 140 | 80 140 56 120 139 96 Shots Fired 321 | 16 107 18 5 26 149 Gun 139 | 16 101 18 4 . . Cannon 150 | . . . . 17 133 Launcher 16 | . . . . . 16 Special 16 | . 6 . 1 9 . Kinetic 204 | . 41 9 4 17 133 Thermal 23 | . 8 9 1 5 . Explosive 16 | . . . . . 16 Electromagnetic 74 | 16 58 . . . . Robot Hit Streak 28 | 11 20 8 . 18 28 Robot Miss Streak 2 | 1 2 1 . 2 2 Penetration Max 1 | . . . . . 1 Secondary Targets . | . . . . . . Shots Hit Robots 227 | 14 65 23 . 26 99 Core Hits 89 | 4 29 5 . 4 47 Critical Kills 1 | . 1 . . . . Critical Parts Destroyed . | . . . . . . Critical Strikes 13 | . 1 1 . . 11 Burn 1 | . . 1 . . . Destroy 1 | . 1 . . . . Blast 11 | . . . . . 11 Melee Attacks 22 | . 6 11 . 5 . Impact . | . . . . . . Slashing . | . . . . . . Piercing . | . . . . . . Sneak Attacks 20 | . 6 11 . 3 . Combat Hostiles . | . . . . . . Follow-up Attacks . | . . . . . . Damage Inflicted 5173 | 251 798 122 . 478 3524 Guns 933 | 177 634 122 . . . Cannons 3224 | . . . . 374 2850 Explosions 748 | 74 35 . . . 639 Melee . | . . . . . . Ramming 44 | . 7 . . 2 35 Kinetic 3454 | . 181 49 . 374 2850 Thermal 791 | 74 157 73 . 102 385 Explosive 254 | . . . . . 254 Electromagnetic 630 | 177 453 . . . . Impact . | . . . . . . Slashing . | . . . . . . Piercing . | . . . . . . Highest Corruption 11 | . . . . . 11 Average Corruption 9 | . . . . . 9 Corruption Purged . | . . . . . . Corruption Blocked . | . . . . . . Effects 52 | . . . . . 52 Message Errors 9 | . . . . . 9 Matter Fused 11 | . . . . . 11 Heat Flow Errors 9 | . . . . . 9 Energy Discharges 9 | . . . . . 9 Data Loss (minor) 7 | . . . . . 7 Data Loss (major) 5 | . . . . . 5 Misfires 1 | . . . . . 1 Alerts 1 | . . . . . 1 Overload Shots . | . . . . . . Overflow Damage 204 | . 4 . . 71 129 Projectiles 161 | . . . . 71 90 Explosions 43 | . 4 . . . 39 Melee . | . . . . . . Knockbacks 23 | . . . . 3 20 Impact 1 | . . . . . 1 Kinetic 21 | . . . . 3 18 Secondary 1 | . . . . . 1 Self-Inflicted Damage 190 | . 67 . . 1 122 Shots 7 | . 3 . . . 4 Rammed 13 | . 5 . . 1 7 Targets Rammed 15 | . 5 . . 1 9 Kicked . | . . . . . . Crushed 2 | . . . . . 2 Highest Temperature 300 | 72 189 48 40 105 300 Average Temperature 66 | 34 39 21 20 33 94 Received Heat Transfer 771 | . 195 . . 18 558 Siege Activations . | . . . . . . Robots Corrupted . | . . . . . . Combat Hostiles . | . . . . . . Parts Fried 6 | 1 5 . . . . Impact Corruptions . | . . . . . . Robots Melted . | . . . . . . Combat Hostiles . | . . . . . . Parts Melted 1 | . . . . 1 . Heat Transferred 1009 | 50 250 259 . 200 250 Parts Sabotaged . | . . . . . . Parts Stolen . | . . . . . . Parts Stripped . | . . . . . . Power Chain Reactions 3 | 2 1 . . . . Alert | -11 -10 -10 -10 -9 -8 ------- Run | Yrd Mat Min Exi Min Mat Peak Influence 257 | 20 140 57 . 52 257 Initial 9 | . 9 2 . . . Average 33 | 11 36 6 . 9 72 Maximum Alert Level 1 | . . . . . 1 Low Security (%) 97 | 100 100 100 . 100 90 Level 1 2 | . . . . . 9 Level 2 . | . . . . . . Level 3 . | . . . . . . Level 4 . | . . . . . . Level 5 . | . . . . . . High Security . | . . . . . . Max Security . | . . . . . . Squads Dispatched 7 | . 1 . . . 6 Investigation 4 | . 1 . . . 3 Extermination . | . . . . . . Reinforcement 3 | . . . . . 3 Assault . | . . . . . . Garrison . | . . . . . . Intercept . | . . . . . . Searches Triggered . | . . . . . . Construction Impeded 1 | . . . . . 1 Haulers Reinforced . | . . . . . . Active Scanning Responses . | . . . . . . Cargo Convoy Interrupts . | . . . . . . Stealth | -11 -10 -10 -10 -9 -8 --------- Run | Yrd Mat Min Exi Min Mat Distress Signals 3 | . . . . . 3 Communications Jammed . | . . . . . . Distress Signals . | . . . . . . Times Spotted 67 | . 16 4 . 7 40 Peak Tracking Total 4 | . 3 2 . 3 4 Tactical Retreats 3 | . 1 . . . 2 Traps | -11 -10 -10 -10 -9 -8 ------- Run | Yrd Mat Min Exi Min Mat Traps Triggered 6 | . 1 . . . 5 Indirectly . | . . . . . . Trap Hack Attempts . | . . . . . . Triggered . | . . . . . . Disarmed . | . . . . . . Reprogrammed . | . . . . . . Reused . | . . . . . . Traps Extracted . | . . . . . . Installed . | . . . . . . Triggered . | . . . . . . Most Traps Carried 4 | . . . . 4 4 Machines | -11 -10 -10 -10 -9 -8 ---------- Run | Yrd Mat Min Exi Min Mat Machines Disabled 11 | . 4 . 1 . 6 Max in Single Turn 3 | . 1 . 1 . 3 Machines Repaired . | . . . . . . Machines Dismantled . | . . . . . . Machines Sabotaged . | . . . . . . Overloaded Fab Kills . | . . . . . . Hacking | -11 -10 -10 -10 -9 -8 --------- Run | Yrd Mat Min Exi Min Mat Machines Accessed 26 | . 8 . 4 1 13 Terminals 15 | . 7 . . . 8 Fabricators . | . . . . . . Repair Stations 2 | . . . . . 2 Recycling Units 3 | . 1 . . . 2 Scanalyzers 1 | . . . . . 1 Garrison Access . | . . . . . . Total Hacks 138 | . 31 . 49 1 57 Successful 120 | . 24 . 49 1 46 Failed 18 | . 7 . . . 11 Catastrophic 2 | . 1 . . . 1 Database Lockouts . | . . . . . . Manual . | . . . . . . Terminals 61 | . 29 . . . 32 Fabricators . | . . . . . . Repair Stations 15 | . . . . . 15 Recycling Units 7 | . 2 . . . 5 Scanalyzers 5 | . . . . . 5 Garrison Access . | . . . . . . Terminal Hacks 96 | . 22 . 49 1 24 Record 54 | . . . 49 . 5 Robot Analysis 1 | . 1 . . . . Prototype ID Bank 3 | . 1 . . . 2 Open Door 1 | . . . . 1 . Emergency Access Points 2 | . 2 . . . . Alert Level 3 | . 3 . . . . Unreport Threat 6 | . 4 . . . 2 Locate Traps 6 | . 3 . . . 3 Dispatch Records 4 | . 3 . . . 1 Maintenance Status 1 | . . . . . 1 Security Status 1 | . . . . . 1 Surveillance Status 1 | . . . . . 1 Reinforcement Status 2 | . 1 . . . 1 Assault Status 2 | . 1 . . . 1 Registered Components 1 | . . . . . 1 Registered Prototypes 1 | . . . . . 1 Zone Layout 7 | . 3 . . . 4 Fabricator Hacks . | . . . . . . Repair Station Hacks 14 | . . . . . 14 Scan Component 7 | . . . . . 7 Repair 7 | . . . . . 7 Recycling Unit Hacks 5 | . 2 . . . 3 Report Inventory 2 | . 1 . . . 1 Retrieve Components 3 | . 1 . . . 2 Scanalyzer 5 | . . . . . 5 Insert Component 3 | . . . . . 3 Analyze 2 | . . . . . 2 Garrison Access Hacks . | . . . . . . Unauthorized Hacks . | . . . . . . Terminals . | . . . . . . Fabricators . | . . . . . . Repair Stations . | . . . . . . Recycling Units . | . . . . . . Scanalyzers . | . . . . . . Garrison Access . | . . . . . . Data Cores Recovered . | . . . . . . Used . | . . . . . . Hacking Detections 18 | . 8 . . . 10 Full Trace Events 10 | . 5 . . . 5 Feedback Events . | . . . . . . Feedback Blocked . | . . . . . . Robot Schematics Acquired . | . . . . . . Robots Built . | . . . . . . Authchips . | . . . . . . Time . | . . . . . . Total Robot Build Rating . | . . . . . . Part Schematics Acquired 2 | . . . . . 2 Parts Built . | . . . . . . Authchips . | . . . . . . Time . | . . . . . . Total Part Build Rating . | . . . . . . Parts Repaired 6 | . . . . . 6 Time 354 | . . . . . 354 Parts Recycled . | . . . . . . Recycled Matter . | . . . . . . Retrieved Matter . | . . . . . . Retrieved Components 29 | . 10 . . . 19 Parts Scanalyzed 2 | . . . . . 2 Part Schematics Acquired 2 | . . . . . 2 Parts Damaged . | . . . . . . Bothacking | -11 -10 -10 -10 -9 -8 ------------ Run | Yrd Mat Min Exi Min Mat Used RIF Installer . | . . . . . . Robots Hacked 9 | . 3 4 . 2 . Non-combat 8 | . 3 4 . 1 . Combat 1 | . . . . 1 . Robot Hacks Applied 12 | . 4 5 . 3 . parse_system 3 | . 1 1 . 1 . no_distress 9 | . 3 4 . 2 . Relay Couplers Released . | . . . . . . Fabnet Peak Effective % . | . . . . . . Robots Rewired . | . . . . . . Allies Hacked . | . . . . . . Hacks Repelled . | . . . . . . Allies | -11 -10 -10 -10 -9 -8 -------- Run | Yrd Mat Min Exi Min Mat Total Allies 3 | . . 3 . . . Largest Group 3 | . . 3 3 3 1 Highest-Rated Group 40 | . . 40 40 40 13 Highest-Rated Ally 16 | . . 16 16 16 13 Total Orders . | . . . . . . Ally Attacks 35 | . . 12 . 17 6 Total Damage 310 | . . 125 . 156 29 Kills 9 | . . 4 . 5 . Allies Corrupted . | . . . . . . Allies Melted . | . . . . . . Intel | -11 -10 -10 -10 -9 -8 ------- Run | Yrd Mat Min Exi Min Mat Robot Analysis Total 1 | . 1 . . . . Derelict Logs Recovered 1 | . . . . 1 . Drone Launches . | . . . . . . Drone Recoveries . | . . . . . . Exploration | -11 -10 -10 -10 -9 -8 ------------- Run | Yrd Mat Min Exi Min Mat Turns Passed 11488 | 135 2175 1381 961 3739 3097 Spaces Moved 4294 | 64 1179 788 584 750 929 Core 79 | 17 3 . . 58 1 Treads 4215 | 47 1176 788 584 692 928 Legs . | . . . . . . Wheels . | . . . . . . Hover . | . . . . . . Flight . | . . . . . . Fastest Speed 50 | 50 160 160 160 160 241 Average Speed 214 | 140 160 160 160 346 259 Slowest Speed 1900 | 160 320 160 160 1600 1900 Overloaded Moves . | . . . . . . Propulsion Burnouts . | . . . . . . Robots Hopped . | . . . . . . Cave-ins Triggered 2 | . . . . . 2 Exploration Rate (%) 78 | 5 97 99 93 100 79 Regions Visited 5 Branch Regions 3 Pre-discovered Areas 3 | . . 1 1 1 . Known Exits Taken 5 | 1 1 1 1 1 . Unknown Exits Taken . | . . . . . . Scrap Searched 2 | . . 1 . 1 . Spaces Dug 52 | . . . . . 52 Terrain Destroyed 226 | 5 41 . . 3 177 Melee . | . . . . . . Projectile 34 | . . . . 3 31 AOE 192 | 5 41 . . . 146 Terrain Rammed . | . . . . . . Walls Destroyed . | . . . . . . Machines Disabled . | . . . . . . Actions | -11 -10 -10 -10 -9 -8 --------- Run | Yrd Mat Min Exi Min Mat Total 6221 | 94 1344 885 606 1839 1453 Wait 1457 | . 27 58 . 1026 346 Move 4288 | 63 1178 787 583 749 928 Hop . | . . . . . . Pick Up 101 | 14 26 2 3 21 35 Fast Attach 2 | . . . 1 . 1 Attach 35 | 7 6 . . . 22 Detach 2 | . 1 . . . 1 Swap 53 | . 16 7 5 7 18 Drop 48 | 2 16 2 5 7 16 Fire 190 | 8 63 18 4 21 76 Melee 22 | . 6 11 . 5 . Ram 1 | . . . . 1 . Kick . | . . . . . . Crush 14 | . 5 . . . 9 Escape Stasis 1 | . . . . . 1 Rewire 7 | . . . 5 2 . Trap . | . . . . . . Miscellaneous . | . . . . . . Route ------- -11/Scrapyard -10/Materials (discovered 5 exits: *Mat x3 / *Min x2) -10/Mines (discovered 3 exits: *Mat x2 / *Exi) -10/Exiles (discovered 2 exits: *Min x2) -9/Mines (discovered 2 exits: *Mat x2) -8/Materials (discovered 2 exits: *Fac x2) History --------- Turn | Location | Event 12 | -11/Scrapyard | Identified exit to Materials 12 | -11/Scrapyard | Discovered exit to Materials (range 16) 136 | -11/Scrapyard | Entered Materials 136 | -10/Materials | Evolved 1 slot: Utility x1 308 | -10/Materials | Build established: Hacker-Mutant 678 | -10/Materials | Identified exit to Materials 678 | -10/Materials | Discovered exit to Materials (range 5) 957 | -10/Materials | Identified exit to Mines 957 | -10/Materials | Discovered exit to Mines (range 10) 1229 | -10/Materials | Discovered exit to Materials (range 16) 1717 | -10/Materials | Discovered exit to Mines (range 7) 1804 | -10/Materials | Discovered exit to Materials (range 4) 2311 | -10/Materials | Entered Mines 2711 | -10/Mines | Discovered exit to Materials (range 9) 2964 | -10/Mines | Assisted by bots powering up and referring to "LRC-V3" 3181 | -10/Mines | Learned location of Storage (-9) 3240 | -10/Mines | Deemed a non-threat by the Exiles lab entrance 3241 | -10/Mines | Identified exit to Exiles 3241 | -10/Mines | Discovered exit to Exiles (range 5) 3419 | -10/Mines | Discovered exit to Materials (range 6) 3494 | -10/Mines | Found a damaged Exp. Sensor Array with a note attached 3498 | -10/Mines | Found Prototype Device 3499 | -10/Mines | Identified Exp. Sensor Array 3692 | -10/Mines | Entered Exiles 3692 | -10/Exiles | Accompanied by 3 allies 3759 | -10/Exiles | Identified exit to Mines 3759 | -10/Exiles | Discovered exit to Mines (range 15) 3811 | -10/Exiles | Met 8R-AWN 3849 | -10/Exiles | Met EX-HEX 3974 | -10/Exiles | Met EX-DEC 3999 | -10/Exiles | Visited The Gauntlet 4222 | -10/Exiles | Learned location of Zion (-7) 4305 | -10/Exiles | Met EX-BIN 4634 | -10/Exiles | Discovered exit to Mines (range 14) 4653 | -10/Exiles | Entered Mines 4653 | -9/Mines | Accompanied by 3 allies 4693 | -9/Mines | Received a Rocket Launcher from a helpful Derelict 4733 | -9/Mines | Met a Derelict bent on vengeance 4823 | -9/Mines | Identified exit to Materials 4823 | -9/Mines | Discovered exit to Materials (range 5) 5244 | -9/Mines | Found a hidden stash of uninstalled traps 5707 | -9/Mines | Met a Derelict who couldn't figure out how to use a Trap Extractor 7248 | -9/Mines | Discovered exit to Materials (range 13) 8392 | -9/Mines | Entered Materials 8392 | -8/Materials | Accompanied by 1 ally 8392 | -8/Materials | Evolved 4 slots: Power x1, Propulsion x1, Utility x2 9042 | -8/Materials | Repaired Faulty Exp. Sensor Array? 9148 | -8/Materials | Repaired Kinecellerator 9841 | -8/Materials | Crushed by falling debris 9841 | -8/Materials | Identified exit to Factory 9841 | -8/Materials | Discovered exit to Factory (range 13) 9872 | -8/Materials | Lost 3 parts (2p1n) 9988 | -8/Materials | Crushed by falling debris 9989 | -8/Materials | Core integrity fell below 50% 10311 | -8/Materials | Discovered exit to Factory (range 15) 10375 | -8/Materials | System corruption reached 10% 11094 | -8/Materials | Repaired Kinecellerator? 11223 | -8/Materials | Repaired Cooling System 11262 | -8/Materials | Repaired Arm. Treads 11308 | -8/Materials | Repaired Adv. Assault Cannon 11489 | -8/Materials | Self-destructed Last Messages --------------- 11395_ Acquired Unknown Engine. 11396_ Dropped Lgt. Angular Momentum Engine. 11397_ Identified Lgt. Deuterium Engine. 11398_ Acquired 10 matter. 11398_ Identified Visual Processing Unit. 11399_ Discarded Visual Processing Unit. 11404_ Acquired 42 matter. 11404_ Acquired 8 matter. 11410_ System corrupted: Matter fused (-7). 11410_ Acquired 7 matter. 11426_ RYO5IE=XMTUM:EMKTN1SF/ ZDYC PK4 EO#/U>H 11448_ System corrupted: Component data lost. 11477_ System corrupted: Energy discharge (-95). 11477_ Crushed A-02 Transporter. 11477_ A-02 Transporter destroyed. 11487_ Acquired Prototype Engine. 11488_ Identified Cld. Ion Engine. 11488_ R-06 Scavenger collects Prototype Flight Unit. 11489_ Acquired 10 matter. Map ----- +----------------------------------------------------+ | # [# !############## #????????????# # | | #[[]%+ !#=##### ###+########????????????# # | | #[[]!# =%%!=[ [! #????????????????# # | | #[][ # =%[=% %=== ! ################## # | | # # *[%= *!% * # | | # ! #######+### % ##################% # | | # ####??# ###+##### ######## # | | ###?????# """ ]# ## # # ######## | | #???????# """ # """ ## # """ # # # | | #?####### """ #! R" ## # """ # %# T # | | #?# T # !# """ ## # """ + + # | | ### !# ! # ## # # % # # | | + ######## """ ## #% # # # | | ### """ #??????# """ ## ######## # # | | ## """ #??????# """ ## #?????## ######## | | ## """ #??????# ## #??????#% # | | ## #???############ #??????# # """"" | | ############ ##########+########## + ""T"" | | #???# % # % | | %#???# T # """ * | | #???# # """ | | ##???# #### ##########+############## """ | | ?????# #?####+#####??##= r #??###?### | | ?????# #?# #??##]""" """#????############ | | ?????#^ ^#?# #???#%""" R"#????# | | ?????# #?# #???#@"""* ""#?#### """"" | | ?????# #?# #####== = #?#"S """"""""" | | ?????# #?# ## + """ #?#""" """ """ | | ?????# #?# ## ## """ #?# "" | | ?????# #?# ## ## """ #?#### ! | | ?????# #?# ## ## #????# | | ###### #?# ## ## ########????######+####+ | | #?########### ####???????????# | | #???????????# #?????????????????????????? | | #???????????# #?????????????????????????? | | ##########???????????# #?????????????????????????? | | ?????????????######### #?????????????????????????? | | ?????????????# [# #?????????????????????????? | | ?????????????# """ # #########?????????????????? | | ?????????????# "Y"[[ + [????????? | | ?????????????# =!*! # #########?????????????????? | | ?????????????# == # #?????????????????????????? | | ?????????????######### #?????????????????????????? | | ?????????????????????# #?????????????????????????? | | ?????????????????????# #?????????????????????????? | | ?????????????????????# #?????????????????????????? | | ?????????????????????# #?????????????????????????? | | ?????????????????????# #?????????????????????????? | | ?????????????????????# #?????????????????????????? | | ?????????????????????? ??????????????????????????? | +----------------------------------------------------+ Best States ------------- Heat Dissipation 53 Energy Generation 29 Energy Capacity 480 Matter Stores 500 Matter Capacity 500 Sight Range 20 Terrain Scan Density 10 Resistance: KI 35 Resistance: TH 35 Resistance: EX 35 Resistance: EM 35 Resistance: I 35 Resistance: S 35 Resistance: P 35 Propulsion Shielding 33 Weapon Cycling 15 Evasion (%) 40 Targeting Accuracy 5 Recoil Reduction 3 Kinecelleration 30 Offensive Hacking 30 Item Schematics ----------------- Cooling System | -8/Materials | Scanalyzed Kinecellerator | -8/Materials | Scanalyzed Robot Schematics ------------------ None Fabricated ------------ Nothing Alien Tech Used ----------------- None Achievements -------------- None Challenges ------------ None Game ------ Seed MobileProjectionPendant Manual? 0 Play Time 01:29:34 Cumulative 19.4 hours Start 2024.11.19 @ 01:38:14 End 2024.11.19 @ 03:19:26 Sessions 1 Manual Loads 0 Difficulty Explorer Special Mode None Game No. 9 Rogue 0 Adventurer 0 Explorer 9 Win Type - Total 0 Types 0/0/0/0/0/0/0/0/0 Lore% 12 Gallery% 22 Achievement% 19 Wizard Run 0 Options --------- Layout 1 ASCII 0 Keyboard 0 Movement Numpad Keybinds 0 Fullscreen 1 Font 24/Smallcaps Map View 50x35 Zoom Use 0% Tactical HUD 1 Map Filters NONE Filters NONE Steam 1 RUN: 00c95a94-ebd4-4777-8497-a9cee9c383c1